Cogmind - Beta 17 @@@ ROGUE MODE // 2026.08.09 @ 21:51:39 Player: Marc Result: Self-destructed Performance ------------- Evolutions (1) 500 Regions Visited (2) 400 Robots Destroyed (1) 5 Value Destroyed (34) 34 Prototype IDs (0) 0 Alien Tech Used (0) 0 Bonus (0) 0 TOTAL SCORE: 939 Bonus ------- None Cogmind --------- Core Integrity 295/400 Matter 163/300 Energy 94/100 System Corruption 0% Temperature Cool (9) Movement Flying (35) Location -9/Materials Parts ------- > --- POWER (2) -------- (None) > --- PROPULSION (2) --- Surge Thruster > --- UTILITY (3) ------ Weight Redist. System Power Shielding > --- WEAPON (2) ------- Small Laser Improved Datajack > --- INVENTORY (5) ---- Surge Thruster Surge Thruster Terrain Scan Processor Improved Datajack Peak State ------------ > --- POWER ------------ Light Ion Engine > --- PROPULSION ------- Surge Thruster Surge Thruster > --- UTILITY ---------- Weight Redist. System Power Shielding > --- WEAPON ----------- Small Laser Improved Datajack > --- INVENTORY -------- Surge Thruster Surge Thruster Terrain Scan Processor Improved Datajack [Rating: 15] Favorites ----------- Power Light Ion Engine Engine Light Ion Engine Propulsion Aluminum Leg Leg Aluminum Leg Flight Unit Surge Thruster Utility Power Shielding Device Weight Redist. System Protection Power Shielding Weapon Small Laser Energy Gun Small Laser Ballistic Gun Light Assault Rifle Special Weapon Welding Torch Special Melee Weapon Datajack Build | -11 -10 -9 ------- Run | Yrd Mat Mat Slots Evolved 2 | . . 2 Power 1 | . . 1 Propulsion . | . . . Utility 1 | . . 1 Weapon . | . . . Parts Attached 12 | 5 3 4 Power 1 | 1 . . Engine 1 | 1 . . Core . | . . . Reactor . | . . . Propulsion 4 | 2 . 2 Treads . | . . . Leg 2 | 2 . . Wheel . | . . . Hover . | . . . Flight 2 | . . 2 Utility 2 | . 1 1 Device 1 | . . 1 Storage . | . . . Processor . | . . . Hackware . | . . . Protection 1 | . 1 . Artifact . | . . . Weapon 5 | 2 2 1 Energy Gun 1 | 1 . . Energy Cannon . | . . . Ballistic Gun 1 | 1 . . Ballistic Cannon . | . . . Launcher . | . . . Special Weapon 1 | . 1 . Impact Weapon . | . . . Slashing Weapon . | . . . Piercing Weapon . | . . . Special Melee Weapon 2 | . 1 1 Unidentified Prototypes . | . . . Parts Lost 1 | . . 1 Power 1 | . . 1 Propulsion . | . . . Utility . | . . . Weapon . | . . . Highest Loss Streak 1 | . . 1 To Critical Strikes . | . . . Average Backups 1 | . . 2 Power . | . . . Propulsion . | . . 1 Utility . | . . . Weapon . | . . . Tool/Special . | . . . Unused Backups 4 | . . 4 Power . | . . . Propulsion 2 | . . 2 Utility 1 | . . 1 Weapon . | . . . Tool/Special 1 | . . 1 Average Slot Usage (%) 73 | . 77 66 Engine 13 | . 14 11 Leg 22 | . 28 9 Flight 3 | . . 11 Protection 7 | . 6 11 Energy Gun 13 | . 14 11 Ballistic Gun 4 | . 7 . Special Melee Weapon 7 | . 6 10 Peak Build Rating 15 | 5 6 15 Average Rating 6 | 3 5 9 On Entrance 3 | . 5 6 Avg Prop Armor Cover (%) . | . . . Naked Turns . | . . . Heaviest Build 6 | 5 6 6 Greatest Support 20 | 20 20 20 Greatest Overweight (x) 1 | . . 1 Average Overweight (x) . | . . . Largest Inventory Capacity 5 | 5 5 5 Average Capacity 5 | 5 5 5 Most Carried 5 | 5 3 5 Average Carried 1 | . . 2 Final Capacity 5 | 5 5 5 Final Carried 4 | . 1 4 Class Distribution -------------------- 85% | Mutant 14% | Sprinter Dominant Class ---------------- Mutant | -10/Materials Sprinter | -9/Materials Resources | -11 -10 -9 ----------- Run | Yrd Mat Mat Matter Collected 183 | 136 47 . Remotely . | . . . Salvage Created 47 | . 47 . Parts 2 | . 2 . Haulers Intercepted . | . . . Recyclers Shooed . | . . . Parts Field Recycled . | . . . Retrieved Matter . | . . . Parts Self-Destructed . | . . . Prevented . | . . . Parts Restored . | . . . Kills | -11 -10 -9 ------- Run | Yrd Mat Mat Combat Hostiles Destroyed 1 | . 1 . Guns 1 | . 1 . Classes Destroyed 1 | . 1 . Grunt 1 | . 1 . Best Kill Streak 1 | . 1 . Combat Bots Only 1 | . 1 . Max Kills in Single Turn 1 | . 1 . Gunslinging . | . . . Exploded . | . . . Melee . | . . . Uniques/NPCs Destroyed . | . . . Combat | -11 -10 -9 -------- Run | Yrd Mat Mat Hostile Shots Fired 58 | . 7 51 Missed 28 | . 1 27 Hits 30 | . 6 24 Melee 2 | . . 2 Projectile 28 | . 6 22 Critical Strikes 2 | . . 2 Damage Taken 389 | . 113 276 Core 115 | . 10 105 Absorbed by Shields . | . . . Redirected to Shielding 19 | . 8 11 Core Remaining (%) 98 | 100 96 . Volleys Fired 9 | . 6 3 Largest 2 | . 2 1 Hottest 60 | . 60 40 Shots Fired 15 | . 12 3 Gun 15 | . 12 3 Cannon . | . . . Launcher . | . . . Special . | . . . Kinetic 6 | . 6 . Thermal 9 | . 6 3 Explosive . | . . . Electromagnetic . | . . . Robot Hit Streak 6 | . 6 3 Robot Miss Streak 1 | . 1 . Penetration Max . | . . . Secondary Targets . | . . . Shots Hit Robots 14 | . 10 4 Core Hits 2 | . 2 . Critical Kills . | . . . Critical Parts Destroyed . | . . . Critical Strikes . | . . . Melee Attacks 6 | . 5 1 Impact . | . . . Slashing . | . . . Piercing . | . . . Sneak Attacks 1 | . . 1 Combat Hostiles . | . . . Follow-up Attacks . | . . . Damage Inflicted 124 | . 89 35 Guns 124 | . 89 35 Cannons . | . . . Explosions . | . . . Melee . | . . . Ramming . | . . . Kinetic 31 | . 31 . Thermal 93 | . 58 35 Explosive . | . . . Electromagnetic . | . . . Impact . | . . . Slashing . | . . . Piercing . | . . . Highest Corruption . | . . . Average Corruption . | . . . Corruption Purged . | . . . Corruption Blocked . | . . . Overload Shots . | . . . Overflow Damage . | . . . Projectiles . | . . . Explosions . | . . . Melee . | . . . Knockbacks . | . . . Impact . | . . . Kinetic . | . . . Secondary . | . . . Self-Inflicted Damage . | . . . Shots . | . . . Rammed . | . . . Targets Rammed . | . . . Kicked . | . . . Crushed . | . . . Highest Temperature 70 | . 70 23 Average Temperature 32 | . 39 10 Received Heat Transfer 102 | . 39 63 Siege Activations . | . . . Martial Activations . | . . . Shielding Activations . | . . . Robots Disrupted . | . . . Combat Hostiles . | . . . Robots Corrupted . | . . . Combat Hostiles . | . . . Parts Fried . | . . . Impact Corruptions . | . . . Robots Melted . | . . . Combat Hostiles . | . . . Parts Melted . | . . . Heat Transferred 200 | . 125 75 Parts Sabotaged . | . . . Parts Stolen . | . . . Parts Stripped . | . . . Power Chain Reactions . | . . . Alert | -11 -10 -9 ------- Run | Yrd Mat Mat Maximum Alert Level . | . . . Low Security (%) 100 | 100 100 100 Level 1 . | . . . Level 2 . | . . . Level 3 . | . . . Level 4 . | . . . Level 5 . | . . . High Security . | . . . Max Security . | . . . Peak Influence 30 | . 30 30 Initial . | . . . Average 2 | . 2 5 Influence Increases 60 | . 30 30 Destroy 0b10 Robot/C 20 | . 20 . Destroy Leader 10 | . 10 . Partial Spotted 15 | . . 15 Lose Combat Pursuer 15 | . . 15 Influence Decreases 60 | . 30 30 Time Decay 50 | . 30 20 Lost Part 10 | . . 10 Squads Dispatched 2 | . 1 1 Investigation . | . . . Extermination . | . . . Reinforcement 2 | . 1 1 Assault . | . . . Garrison . | . . . Intercept . | . . . Searches Triggered . | . . . Construction Impeded . | . . . Haulers Reinforced . | . . . Active Scanning Responses . | . . . Cargo Convoy Interrupts . | . . . Stealth | -11 -10 -9 --------- Run | Yrd Mat Mat Distress Signals . | . . . Communications Jammed . | . . . Distress Signals . | . . . Times Spotted 28 | . 7 21 Peak Tracking Total 19 | . 2 19 Tactical Retreats 1 | . . 1 Traps | -11 -10 -9 ------- Run | Yrd Mat Mat Traps Triggered 2 | . 2 . Indirectly . | . . . Trap Hack Attempts . | . . . Triggered . | . . . Disarmed . | . . . Reprogrammed . | . . . Reused . | . . . Traps Extracted . | . . . Installed . | . . . Triggered . | . . . Machines | -11 -10 -9 ---------- Run | Yrd Mat Mat Machines Disabled . | . . . Max in Single Turn . | . . . Machines Repaired . | . . . Machines Dismantled . | . . . Machines Sabotaged . | . . . Overloaded Fab Kills . | . . . Hacking | -11 -10 -9 --------- Run | Yrd Mat Mat Machines Accessed 3 | . 2 1 Terminals 1 | . . 1 Fabricators . | . . . Repair Stations . | . . . Recycling Units 2 | . 2 . Scanalyzers . | . . . Garrison Access . | . . . Total Hacks 5 | . 3 2 Successful 3 | . 3 . Failed 2 | . . 2 Catastrophic . | . . . Database Lockouts . | . . . Manual . | . . . Terminals 2 | . . 2 Fabricators . | . . . Repair Stations . | . . . Recycling Units 3 | . 3 . Scanalyzers . | . . . Garrison Access . | . . . Terminal Hacks . | . . . Fabricator Hacks . | . . . Repair Station Hacks . | . . . Recycling Unit Hacks 3 | . 3 . Process 1 | . 1 . Report Inventory 1 | . 1 . Retrieve Matter 1 | . 1 . Scanalyzer . | . . . Garrison Access Hacks . | . . . Unauthorized Hacks . | . . . Terminals . | . . . Fabricators . | . . . Repair Stations . | . . . Recycling Units . | . . . Scanalyzers . | . . . Garrison Access . | . . . Data Cores Recovered . | . . . Used . | . . . Hacking Detections 3 | . 2 1 Full Trace Events . | . . . Feedback Events . | . . . Feedback Blocked . | . . . Robot Schematics Acquired . | . . . Robots Built . | . . . Authchips . | . . . Time . | . . . Total Robot Build Rating . | . . . Part Schematics Acquired . | . . . Parts Built . | . . . Authchips . | . . . Time . | . . . Total Part Build Rating . | . . . Part Studies Acquired . | . . . Parts Repaired . | . . . Time . | . . . Parts Recycled . | . . . Recycled Matter 11 | . 11 . Retrieved Matter 11 | . 11 . Retrieved Components . | . . . Parts Scanalyzed . | . . . Part Schematics Acquired . | . . . Parts Damaged . | . . . Bothacking | -11 -10 -9 ------------ Run | Yrd Mat Mat Used RIF Installer . | . . . Robots Hacked 2 | . 1 1 Non-combat 2 | . 1 1 Combat . | . . . Robot Hacks Applied 2 | . 1 1 parse_system 1 | . 1 . no_distress 1 | . . 1 Relay Couplers Released . | . . . Fabnet Peak Effective % . | . . . Robots Rewired . | . . . Allies Hacked . | . . . Hacks Repelled . | . . . Allies | -11 -10 -9 -------- Run | Yrd Mat Mat Total Allies . | . . . Largest Group . | . . . Highest-Rated Group . | . . . Highest-Rated Ally . | . . . Total Orders . | . . . Ally Attacks . | . . . Total Damage . | . . . Kills . | . . . Allies Corrupted . | . . . Allies Melted . | . . . Intel | -11 -10 -9 ------- Run | Yrd Mat Mat Active Infowar (turns) . | . . . Robot Analysis Total . | . . . Derelict Logs Recovered . | . . . Drone Launches . | . . . Drone Recoveries . | . . . Exploration | -11 -10 -9 ------------- Run | Yrd Mat Mat Turns Passed 558 | 52 347 159 Spaces Moved 499 | 44 182 273 Core 17 | 15 . 2 Treads . | . . . Legs 264 | 29 182 53 Wheels . | . . . Hover . | . . . Flight 218 | . . 218 Fastest Speed 32 | 50 120 32 Average Speed 79 | 96 120 49 Slowest Speed 120 | 120 120 120 Overloaded Moves . | . . . Propulsion Burnouts . | . . . Robots Hopped . | . . . Potential Cave-ins . | . . . Cave-ins Triggered . | . . . Exploration Rate (%) 21 | 4 31 30 Regions Visited 2 Branch Regions . Pre-discovered Areas . | . . . Known Exits Taken . | . . . Unknown Exits Taken 2 | 1 1 . Scrap Searched . | . . . Spaces Dug . | . . . Terrain Destroyed . | . . . Melee . | . . . Projectile . | . . . AOE . | . . . Terrain Rammed . | . . . Walls Destroyed . | . . . Machines Disabled . | . . . Actions | -11 -10 -9 --------- Run | Yrd Mat Mat Total 647 | 53 299 295 Wait 98 | . 97 1 Move 497 | 43 181 273 Hop . | . . . Pick Up 15 | 5 3 7 Fast Attach 1 | . . 1 Attach 12 | 5 4 3 Detach 4 | . 2 2 Swap . | . . . Drop 5 | . 1 4 Fire 9 | . 6 3 Melee 6 | . 5 1 Ram . | . . . Kick . | . . . Crush . | . . . Escape Stasis . | . . . Rewire . | . . . Trap . | . . . Miscellaneous . | . . . Route ------- -11/Scrapyard -10/Materials -9/Materials (discovered 1 exit: [*Min]) History --------- Turn | Location | Event 4 | -11/Scrapyard | Discovered new exit (range 15) 53 | -11/Scrapyard | Entered Materials 289 | -10/Materials | Discovered new exit (range 14) 312 | -10/Materials | Build established: Mutant 400 | -10/Materials | Entered another Materials area 400 | -9/Materials | Evolved 2 slots: Power x1, Utility x1 527 | -9/Materials | Discovered new exit (range 16) 559 | -9/Materials | Self-destructed Last Messages --------------- Distress signal routine blocked. 00435_ K-01 Serf collects debris. 00455_ Acquired Terrain Scan Processor. 00469_ Dropped Aluminum Leg. 00470_ Acquired Surge Thruster. 00478_ Dropped Datajack. 00479_ Acquired Imp. Datajack. 00482_ Dropped Welding Torch. 00501_ R-06 Scavenger collects Aluminum Leg. 00516_ Acquired Weight Redist. System. 00527_ EXIT=FOUND 00527_ O-16 Technician: "IFF HANDSHAKE FAILED. SECURING TERMINAL." 00531_ ALERT: Hostiles spotted, dispatching reinforcements to Terminal M002. 00536_ Connecting with Terminal... 00536_ Current location identified: Materials 00553_ Surge Thruster severed. 00556_ Critical hit (Burn: +37). 00556_ Lgt. Ion Engine destroyed. Map ----- +----------------------------------------------------+ | ## ?????# ##+########???????????????????????? | | ### ##???????????????????????????? | | T#???????????????????????????? | | ### """ ##???????????????????????????? | | ##???????# "Y" ##???????????????????????????? | | ?????????### " " "#???????????????????????????? | | ??????????#" T#???????????????????????????? | | ??????????#T "#????????????????????????##?? | | ??????????#" ##????????????????????#### ##? | | ??????????## #?????????????????????# #? | | ???????????# #?????????????????????# #? | | ???????????# #### +?????????????????????# """ #? | | ??????????##+#### #?????????????????????# """ #? | | ??????????# # #?????????????????????# """ #? | | ??????????# "" # #?????????????????????# #? | | ??????????# "Y # #???????????????####### #? | | ??????????# "" + #?##########????# ##+####? | | ??????????# # ### #????# ### | | ??????????####### + #????# | | ????????????????# # #????# | | ????????????????# # #????# ###+#### | | ????????????????# + s #????## ##??????? | | ????????????????#######ss #?????# #???????? | | ??????????????????????#sss #?????# #???????? | | ??????????????????????# s s #?????# #???????? | | ??????????????##??????#Y @ #????## ##??????? | | ??????????????# ##l#########+## #??????? | | ?????????? Yg #??????? | | ?????????? < rr T #??????? | | ?????????? a #??????? | | ??????????? ## ##+#########+## #??????? | | ??????????????# "|"!" # ????????# ## ##??????? | | ??????????????#""|"!"?#?????????# ## #???????? | | ???????????????######???????????#[[ ## #???????? | | ????????????????????????????????#[[ ## #???????? | | ????????????????????????????????#[ ## #????#### | | ????????????????????????????????# # ##### | | ????????????????????????????????# # | | ????????????????????????????????##### " | | ????????????????????????????????????# | | ????????????????????????????????????# ##### | | ????????????????????????????????????############ | | ??????????????????????????????????????# # | | ??????????????????????????????????????? """" # | | ?????????????????????????????????????# """" + | | ??????????????????????????????????????# """" # | | ??????????????????????????????????????# # | | ??????????????????????????????????????# ** # | | ??????????????????????????????????????# ** + | | ??????????????????????????????????????# ** ### | +----------------------------------------------------+ Best States ------------- Heat Dissipation 28 Energy Generation 10 Energy Capacity 125 Matter Stores 228 Matter Capacity 300 Sight Range 16 Terrain Scan Density 10 Additional Mass Support 6 Power Shielding 33 Evasion (%) 63 Item Schematics ----------------- None Robot Schematics ------------------ None Fabricated ------------ Nothing Repaired ---------- Nothing Studied --------- None Alien Tech Used ----------------- None Achievements -------------- None Challenges ------------ None Game ------ Seed TrackerMappingSightfinder Manual? 0 Play Time 00:08:11 Cumulative 10.0 hours Start 2026.08.09 @ 21:42:11 End 2026.08.09 @ 21:51:39 Sessions 1 Manual Loads 0 Difficulty Rogue Special Mode None Game No. 26 Rogue 19 Adventurer 7 Explorer 0 Win Type - Total 0 Types 0/0/0/0/0/0/0/0/0/0 Lore% 9 Gallery% 14 Achievement% 11 Wizard Run 0 Options --------- Layout 1 ASCII 0 Keyboard 0 Movement Mouse Keybinds 0 Fullscreen 1 Font 24/Smallcaps Map View 50x35 Zoom Use 0% Tactical HUD 1 Map Filters NONE Filters NONE Steam 1 RUN: d0f03711-dd4a-4418-9f16-b43a4619853f